bitfinex/quotes_ETHUSD_20250801
["timestamp","ask_amount","ask_price","bid_price","bid_amount"]
[1754023750662,0.9213,3689.4,3689.2,0.1352]
[1754023750865,0.1352,3689.7,3689.2,0.1352]
[1754023751034,0.9213,3689.3,3689.2,0.1352]
[1754023751457,0.9213,3689.3,3688.8,4.174]
[1754023751645,0.9213,3689.2,3689.0,0.1352]
[1754023751839,0.1352,3689.5,3689.0,0.1352]
[1754023752259,0.1352,3689.5,3689.1,0.4945]
[1754023752652,0.1352,3689.5,3689.0,0.5527]
[1754023752854,0.1352,3689.5,3689.2,0.4945]
[1754023753234,4.195,3689.9,3689.4,0.1352]
[1754023753542,0.021,3689.9,3689.5,0.4945]
[1754023753765,0.021,3689.9,3689.6,0.1352]
[1754023754457,0.9213,3689.8,3689.6,0.1352]
[1754023754656,0.4658,3689.7,3689.6,0.1352]
[1754023754834,0.021,3689.9,3689.6,0.1352]
[1754023755053,0.4868,3689.9,3689.6,0.1352]
[1754023755253,0.4658,3689.8,3689.6,0.1352]
[1754023755670,0.9213,3689.8,3688.9,0.4945]
[1754023755849,5.0943,3689.7,3688.5,0.4945]
[1754023756051,0.1352,3689.3,3688.8,0.1352]
[1754023756275,0.4658,3689.2,3688.8,0.1352]
[1754023756450,0.4658,3689.2,3688.8,0.6136]
[1754023757950,0.1352,3689.3,3688.8,0.1352]
[1754023758287,0.9134,3689.2,3688.8,0.1352]
[1754023758589,0.9134,3689.1,3688.8,0.1352]
[1754023758790,4.173,3689.7,3688.3,0.002]
[1754023758791,0.9134,3689.0,3688.3,0.002]
[1754023759089,0.1352,3688.9,3688.3,0.1372]
[1754023759385,0.9134,3688.8,3688.3,0.1372]
[1754023759689,0.9134,3688.7,3688.3,0.1372]
[1754023759985,0.9134,3688.6,3688.3,0.002]
[1754023760686,0.4296,3688.6,3688.3,0.002]
[1754023761059,0.4296,3688.5,3688.3,0.002]
[1754023761567,0.4838,3688.6,3688.3,0.002]
[1754023761969,0.9134,3688.6,3688.3,0.002]
[1754023763892,0.4838,3688.6,3688.3,0.002]
[1754023764081,0.4296,3688.5,3688.3,0.002]
[1754023764576,0.9134,3688.4,3688.3,0.002]
[1754023765086,1.0486,3688.4,3688.3,0.002]
[1754023765489,4.172,3689.0,3688.3,0.002]
[1754023765490,0.1352,3688.7,3688.3,0.002]
[1754023765660,0.1352,3688.7,3688.3,0.4804]
[1754023767195,0.5648,3688.7,3688.3,0.4804]
[1754023769172,0.9134,3688.6,3688.3,0.002]
[1754023769373,0.1352,3688.4,3688.3,0.002]
[1754023769771,1.0486,3688.4,3688.3,0.002]
[1754023771491,0.9134,3688.4,3688.3,0.002]
[1754023771677,1.0486,3688.4,3688.3,0.002]
[1754023772392,5.2166,3688.4,3688.3,0.002]
[1754023772594,1.0486,3688.4,3688.3,0.002]
[1754023773863,0.5648,3688.4,3688.3,0.002]
[1754023774601,1.0486,3688.4,3688.3,0.002]
[1754023774968,0.5648,3688.4,3688.3,0.002]
[1754023775704,1.0486,3688.4,3688.3,0.002]
[1754023776388,0.1352,3688.4,3688.3,0.002]
[1754023776592,4.3002,3688.4,3688.3,0.002]
[1754023777097,0.1352,3688.4,3688.3,0.002]
[1754023777301,3.0,3688.5,3688.3,0.84511202]
[1754023777504,3.0,3688.5,3688.4,0.4784]
[1754023778209,3.0,3688.5,3688.3,0.002]
[1754023778388,4.3002,3688.6,3688.3,0.002]
[1754023778389,0.1352,3688.6,3688.3,0.002]
[1754023778583,3.0,3688.5,3688.3,0.002]
[1754023779113,0.4296,3688.4,3688.3,0.002]
[1754023779311,1.0486,3688.4,3688.3,0.002]
[1754023780319,1.86996,3688.4,3688.3,0.002]
[1754023780681,2.12222341,3688.4,3688.3,0.002]
[1754023781011,2.37447386,3688.4,3688.3,0.002]
[1754023789427,0.63971386,3688.4,3688.3,0.002]
[1754023789719,0.1352,3689.1,3688.3,0.8773]
[1754023789890,0.021,3689.9,3688.9,7.95072015]
[1754023790088,0.1352,3689.4,3689.0,0.79507202]
[1754023790291,0.021,3689.9,3689.3,7.95072015]
[1754023790514,0.021,3689.9,3689.7,7.95072015]
[1754023790716,0.021,3689.9,3689.8,0.1352]
[1754023791016,0.021,3689.9,3689.8,1.0105]
[1754023791223,0.021,3689.9,3689.8,1.90662202]
[1754023792290,0.021,3689.9,3689.8,1.48912202]
[1754023792534,0.021,3689.9,3689.8,1.77142202]
[1754023792738,0.021,3689.9,3689.8,1.90662202]
[1754023793035,0.021,3689.9,3689.8,1.48912202]
[1754023793236,0.021,3689.9,3689.8,0.4578]
[1754023793619,0.021,3689.9,3689.4,0.4578]
[1754023793815,0.4456,3689.8,3688.6,11.64961215]
[1754023794031,0.8977,3689.8,3689.1,0.4578]
[1754023794409,0.1352,3689.7,3689.2,0.1352]
[1754023794644,0.1352,3689.7,3689.3,0.4578]
[1754023795228,0.1352,3689.7,3689.2,0.1352]
[1754023795431,0.1352,3689.7,3689.4,0.4578]
[1754023799424,0.1352,3689.7,3689.2,0.1352]
[1754023799738,0.1352,3689.7,3689.5,0.4578]
[1754023800313,0.1352,3689.7,3689.6,0.4578]
[1754023801745,0.021,3689.9,3689.6,1.0105]
[1754023801947,0.021,3689.9,3689.7,0.4578]
[1754023802152,0.021,3689.9,3689.8,0.1352]
[1754023802942,0.021,3689.9,3689.8,0.4578]
[1754023803142,0.021,3689.9,3689.8,4.13547399]
[1754023803354,0.001,3690.3,3690.2,2.70988022]
[1754023803634,0.001,3690.3,3690.1,2.70993527]
[1754023804015,0.001,3690.3,3690.2,0.8753]
[1754023804953,0.001,3690.3,3690.2,3.61227902]
[1754023805155,0.001,3690.3,3690.2,0.8753]
[1754023805453,0.001,3690.3,3690.2,1.23382367]
[1754023805748,0.001,3690.3,3690.2,0.35852367]
[1754023805953,0.001,3690.3,3690.0,0.4578]
[1754023806139,0.001,3690.3,3689.8,1.85224779]
[1754023806309,0.001,3690.3,3690.1,0.4578]
[1754023807141,0.001,3690.3,3690.2,0.8753]
[1754023807855,0.001,3690.3,3690.2,3.58518022]
[1754023808050,0.001,3690.3,3690.2,4.21470809]
[1754023808255,0.001,3690.3,3690.2,7.76470809]
[1754023808420,0.02,3690.9,3690.5,2.70960925]
[1754023808619,0.02,3690.9,3690.5,14.3592214]
[1754023808846,0.02,3690.9,3690.6,0.8753]
[1754023809054,0.02,3690.9,3690.7,1.94045695]
[1754023809425,0.02,3690.9,3690.8,0.4578]
[1754023810029,0.02,3690.9,3690.7,1.94045695]
[1754023810354,0.02,3690.9,3690.4,0.4578]
[1754023810654,0.02,3690.9,3690.2,3.62952787]
[1754023810950,0.02,3690.9,3690.2,0.62952787]
[1754023810951,0.4656,3690.9,3690.2,0.62952787]
[1754023811153,0.4521,3690.8,3690.0,0.4578]
[1754023812464,0.4656,3690.9,3690.0,0.4578]
[1754023812825,0.4656,3690.9,3690.5,0.1352]
[1754023813123,0.8977,3690.8,3690.5,0.1352]
[1754023813335,0.8977,3690.7,3690.5,0.1352]
[1754023813743,0.001,3690.8,3690.5,0.1352]
[1754023813744,0.4456,3690.6,3690.5,0.1352]
[1754023813937,0.8977,3690.6,3690.5,0.1352]
[1754023814122,0.001,3690.8,3690.5,0.1352]
[1754023814566,0.8987,3690.8,3690.5,0.1352]
[1754023815060,0.8977,3690.7,3690.5,0.1352]
[1754023815435,0.8977,3690.6,3690.5,0.1352]
[1754023817249,0.8977,3690.6,3690.4,0.1352]
[1754023817565,0.8977,3690.6,3689.4,0.814586]
[1754023817566,3.8953,3690.5,3689.4,0.814586]
[1754023817741,0.8953,3690.4,3689.0,0.4666]
[1754023818260,0.1352,3690.1,3689.6,0.1352]
[1754023818564,0.8953,3690.0,3689.6,0.1352]
[1754023818787,0.4445,3689.9,3689.6,0.1352]
[1754023819134,0.1352,3690.1,3689.6,0.1352]
[1754023819332,0.8953,3689.8,3688.8,0.1]
[1754023819555,1.0305,3689.8,3689.2,0.1352]
[1754023819862,1.0305,3689.8,3688.8,0.1]
[1754023819863,0.4445,3690.1,3689.3,0.4666]
[1754023820048,0.1352,3690.2,3689.7,0.1352]
[1754023820251,0.1352,3690.2,3689.7,0.6018]
[1754023820434,0.4508,3690.7,3690.0,0.1352]
[1754023820634,0.586,3690.7,3690.2,0.1352]
[1754023820845,0.8953,3690.6,3690.2,0.1352]
[1754023821043,0.8953,3690.5,3689.4,0.4666]
[1754023821255,0.1352,3690.5,3689.9,0.1352]
[1754023821575,0.8953,3690.4,3689.9,0.1352]
[1754023821874,0.8953,3690.3,3689.9,0.1352]
[1754023822034,0.1352,3690.5,3689.9,0.1352]
[1754023822364,0.4445,3690.2,3689.9,0.1352]
[1754023823773,0.4445,3690.1,3689.9,0.1352]
[1754023823964,0.1352,3690.5,3689.9,0.1352]
[1754023823965,0.4445,3690.0,3689.9,0.1352]
[1754023824169,0.8953,3690.0,3689.1,0.002]
[1754023824333,1.0305,3690.0,3689.5,0.1352]
[1754023824539,0.1352,3690.0,3689.5,0.1352]
[1754023824764,0.8953,3689.9,3689.5,0.1352]
[1754023824942,0.8953,3689.8,3689.5,0.1352]
[1754023825151,0.1352,3690.0,3689.5,0.1352]
[1754023825470,0.4445,3690.4,3689.6,0.4937032]
[1754023825637,0.1352,3690.3,3689.8,0.1352]
[1754023825839,0.8953,3690.2,3689.8,0.1352]
[1754023826179,0.4445,3690.1,3689.8,0.1352]
[1754023826680,0.1352,3690.3,3689.9,0.4666]
[1754023826966,0.4445,3690.2,3689.8,0.1352]
[1754023827331,4.172,3690.7,3689.9,0.493701]
[1754023827332,0.8953,3690.7,3689.9,0.493701]
[1754023827536,0.50496574,3690.6,3690.1,0.1352]
[1754023827761,0.50496574,3690.5,3690.1,0.1352]
[1754023827971,0.4445,3690.5,3690.1,0.1352]
[1754023828261,0.4445,3690.5,3690.1,0.6018]
[1754023828570,0.4445,3690.4,3690.1,0.1352]
[1754023830980,0.4508,3690.5,3690.1,0.1352]
[1754023831172,0.5797,3690.7,3690.1,0.1352]
[1754023831347,0.50529864,3690.6,3690.2,0.4666]
[1754023831553,0.50529864,3690.5,3690.2,0.4666]
[1754023831752,0.4445,3690.6,3690.2,0.4666]
[1754023831983,0.50540814,3690.5,3690.2,0.4666]
[1754023832188,0.4445,3690.6,3690.2,0.4666]
[1754023832363,0.50543297,3690.5,3690.2,0.4666]
[1754023832562,0.4445,3690.6,3690.2,0.4666]
[1754023832767,0.1352,3690.7,3690.3,0.4666]
[1754023833085,0.1352,3690.7,3689.8,2.7101639]
[1754023833086,0.25277137,3690.6,3690.4,0.6018]
[1754023833254,0.001,3690.8,3690.4,0.6018]
[1754023833583,0.50559997,3690.7,3690.4,0.6018]
[1754023833806,0.69730453,3690.6,3690.4,0.1352]
[1754023833964,0.5055737,3690.5,3690.4,0.1352]
[1754023834164,0.9500737,3690.5,3690.4,0.1352]
[1754023834374,0.95009103,3690.5,3690.4,0.1352]
[1754023835157,0.4445,3690.5,3690.4,0.1352]
[1754023835556,0.4508,3690.6,3690.4,0.1352]
[1754023835760,0.001,3690.7,3690.4,0.1352]
[1754023835954,0.50672808,3690.7,3690.4,0.1352]
[1754023836192,0.001,3690.7,3690.5,0.4666]
[1754023836487,0.001,3690.7,3690.6,0.6018]
[1754023836865,0.001,3690.7,3690.6,1.04639586]
[1754023837191,0.001,3690.7,3690.6,4.40276744]
[1754023837392,0.001,3690.7,3690.6,1.66608507]
[1754023837691,0.001,3690.7,3690.6,4.37567158]
[1754023837878,0.001,3690.7,3690.6,1.24858507]
[1754023840066,0.001,3690.7,3690.6,0.78198507]
[1754023840301,1.40246,3690.7,3690.3,0.002]
[1754023840456,1.40146,3690.6,3690.3,0.002]
[1754023840661,0.64136,3690.5,3689.6,0.1352]
[1754023840896,0.1352,3689.8,3689.3,0.1352]
[1754023841091,0.8953,3689.7,3689.3,0.1352]
[1754023841315,0.1352,3689.8,3689.3,0.1352]
[1754023841483,0.8953,3689.6,3689.3,0.1352]
[1754023841662,0.8953,3689.5,3689.3,0.1352]
[1754023841859,0.4508,3689.5,3689.3,0.1352]
[1754023842192,0.1352,3689.8,3689.3,0.1352]
[1754023842396,0.8953,3689.7,3689.3,0.1352]
[1754023842559,0.8953,3689.6,3689.2,0.1352]
[1754023842895,0.4445,3689.5,3689.2,0.1352]
[1754023843093,0.1352,3689.8,3689.2,0.6018]
[1754023843094,0.586,3689.8,3689.2,0.6018]
[1754023843391,0.4445,3689.7,3689.2,0.1352]
[1754023843767,0.4508,3689.7,3689.2,0.1352]
[1754023843974,0.8953,3689.6,3689.2,0.1352]
[1754023844185,0.4445,3689.5,3689.2,0.1352]
[1754023844495,0.001,3690.7,3689.3,0.49370541]
[1754023844694,0.1352,3690.3,3689.4,0.1352]
[1754023844886,0.1352,3690.3,3689.8,0.1352]
[1754023845085,0.8953,3690.4,3689.9,0.4666]
[1754023845290,1.0305,3690.4,3689.9,0.4666]
[1754023845490,0.8953,3690.3,3689.8,0.1352]
[1754023845996,0.4445,3690.2,3689.8,0.1352]
[1754023847492,0.9289,3690.1,3689.8,0.1352]
[1754023847688,0.9289,3690.0,3689.8,0.1352]
[1754023847879,0.9289,3689.9,3689.8,0.1352]
[1754023848078,0.9289,3689.9,3689.1,0.002]
[1754023848276,0.1352,3689.8,3689.2,0.1352]
[1754023848479,1.0641,3689.8,3689.2,0.1352]
[1754023849887,0.1352,3689.8,3689.2,0.1352]
[1754023850094,0.9289,3689.7,3689.2,0.1352]
[1754023850272,0.4784,3689.6,3689.2,0.1352]
[1754023850468,0.4505,3689.5,3689.2,0.1352]
[1754023852093,0.9289,3689.4,3689.1,0.002]
[1754023852470,0.1352,3689.6,3689.1,0.002]
[1754023852704,0.4505,3689.3,3689.1,0.002]
[1754023853195,0.1352,3689.6,3689.1,0.002]
[1754023853402,0.4505,3689.8,3689.2,0.4566]
[1754023854196,0.5857,3689.8,3689.2,0.5918]
[1754023855682,0.4784,3689.9,3689.5,0.1352]
[1754023855879,0.5857,3690.1,3689.5,0.1352]
[1754023856114,0.25310998,3690.0,3689.5,0.5918]
[1754023856476,0.70360998,3690.0,3689.5,0.5918]
[1754023856802,0.9289,3689.9,3689.5,0.1352]
[1754023856972,0.4784,3689.9,3689.5,0.1352]
[1754023857173,0.4505,3689.8,3689.5,0.1352]
[1754023857780,0.9289,3689.8,3689.5,0.1352]
[1754023859481,0.1352,3690.1,3689.5,0.5918]
[1754023859677,0.25305757,3690.0,3689.5,0.5918]
[1754023859877,0.4505,3689.9,3689.5,0.5918]
[1754023860304,0.001,3691.1,3689.6,0.4837032]
[1754023860524,0.5061223,3690.6,3689.8,0.1352]
[1754023860683,0.25306115,3690.5,3690.4,0.1352]
[1754023861014,0.25306115,3690.5,3690.4,0.5918]
[1754023861213,0.25306115,3690.5,3690.4,0.1352]
[1754023861514,0.50611848,3690.5,3690.4,0.1352]
[1754023862012,1.18196115,3690.5,3690.3,0.1352]
[1754023862313,0.4505,3690.5,3690.3,0.1352]
[1754023862619,0.001,3690.7,3690.3,0.1352]
[1754023862782,0.4515,3690.7,3690.3,0.1352]
[1754023862983,0.9299,3690.7,3690.3,0.1352]
[1754023863400,0.4505,3690.6,3690.3,0.1352]
[1754023863896,0.9289,3690.5,3689.1,4.162]
[1754023864212,0.1352,3690.2,3689.7,0.1352]
[1754023864418,0.9289,3690.1,3689.7,0.1352]
[1754023864589,0.9289,3690.0,3689.7,0.1352]
[1754023865718,0.4784,3690.0,3689.7,0.1352]
[1754023865922,0.9289,3689.9,3689.7,0.1352]
[1754023866419,0.6136,3690.2,3689.7,0.1352]
[1754023866605,0.1352,3690.2,3689.7,0.1352]
[1754023866808,0.5857,3690.2,3689.7,0.5918]
[1754023867180,1.0641,3690.2,3689.7,0.5918]
[1754023867416,0.4505,3690.1,3689.7,0.5918]
[1754023868129,0.9289,3690.0,3689.7,0.1352]
[1754023868304,0.9289,3689.9,3689.5,0.1352]
[1754023868707,0.1352,3690.0,3689.5,0.1352]
[1754023869026,0.9289,3689.8,3689.5,0.1352]
[1754023869195,0.4505,3689.7,3689.5,0.1352]
[1754023869528,0.9289,3689.7,3689.3,0.1352]
[1754023869827,0.1352,3689.8,3689.3,0.1352]
[1754023870028,0.9289,3689.6,3689.3,0.1352]
[1754023871197,0.1352,3689.8,3689.3,0.5918]
[1754023871597,0.4505,3689.7,3689.3,0.5918]
[1754023872129,0.9289,3689.7,3689.3,0.1352]
[1754023873102,0.4784,3689.7,3689.3,0.1352]
[1754023873302,0.4505,3689.6,3689.3,0.1352]
[1754023873703,0.1352,3689.8,3689.3,0.1352]
[1754023873933,0.4505,3689.7,3689.3,0.1352]
[1754023874235,0.9289,3689.6,3689.3,0.1352]
[1754023874547,0.9289,3689.5,3689.3,0.1352]
[1754023874914,0.4505,3689.5,3689.3,0.1352]
[1754023875139,0.4505,3689.4,3689.3,0.1352]
[1754023875341,0.9289,3689.4,3689.1,0.002]
[1754023875514,1.0641,3689.3,3689.1,0.002]
[1754023875704,0.9289,3689.2,3689.1,0.002]
[1754023877539,0.1352,3689.3,3689.1,0.002]
[1754023877725,0.1352,3689.3,3689.1,0.4734]
[1754023877904,0.4706,3689.9,3689.1,0.4734]
[1754023878105,0.64201198,3689.8,3689.2,0.1352]
[1754023878312,0.50681198,3689.7,3689.2,0.1352]
[1754023878656,0.25341883,3689.6,3689.2,0.1352]
[1754023878885,0.25341883,3689.6,3689.2,0.6066]
[1754023878886,0.25341883,3689.5,3689.2,0.6066]
[1754023879078,0.4358,3689.6,3689.3,0.002]
[1754023879346,0.25339266,3689.5,3689.3,0.002]
[1754023879545,0.4358,3689.6,3689.3,0.002]
[1754023879720,0.25338667,3689.5,3689.3,0.002]
[1754023879916,0.4358,3689.6,3689.3,0.002]
[1754023880229,0.4358,3689.4,3689.3,0.002]
[1754023880745,1.5482941,3689.4,3689.3,0.002]
[1754023880948,1.70312351,3689.4,3689.3,0.002]
[1754023881525,1.4497753,3689.4,3689.3,0.002]
[1754023882058,0.1352,3689.4,3689.3,0.002]
[1754023882362,0.001,3690.8,3689.3,0.4734]
[1754023882508,0.1352,3689.8,3689.3,0.4734]
[1754023882936,0.6058,3689.8,3689.3,0.4734]
[1754023883126,0.4358,3689.7,3689.3,0.4734]
[1754023883445,0.571,3689.8,3689.3,0.4734]
[1754023883652,0.1352,3689.8,3689.3,0.4734]
[1754023883945,0.4358,3689.7,3689.3,0.4734]
[1754023884641,0.9064,3689.6,3689.3,0.002]
[1754023884848,0.1352,3689.4,3689.3,0.002]
[1754023885252,1.0416,3689.4,3689.3,0.002]
[1754023885610,1.29496491,3689.4,3689.3,0.002]
[1754023886861,0.571,3689.4,3689.3,0.002]
[1754023887066,0.1352,3689.7,3689.3,0.4734]
[1754023887265,1.15977432,3689.6,3689.3,0.002]
[1754023887509,0.25336053,3689.5,3689.3,0.002]
[1754023887680,0.9064,3689.6,3689.3,0.002]
[1754023887878,0.4358,3689.5,3689.3,0.002]
[1754023888078,0.9064,3689.5,3689.3,0.002]
[1754023888292,0.1352,3689.4,3689.3,0.002]
[1754023888484,1.0416,3689.4,3689.3,0.002]
[1754023888806,1.29494694,3689.4,3689.3,0.002]
[1754023889410,1.29489879,3689.4,3689.3,0.002]
[1754023890191,1.0416,3689.4,3689.3,0.002]
[1754023891226,1.54809058,3689.4,3689.3,0.002]
[1754023891709,1.70289964,3689.4,3689.3,0.002]
[1754023901222,35.25289964,3689.4,3689.3,0.002]
[1754023904397,39.41089964,3689.4,3689.3,0.002]
[1754023906925,47.36459918,3689.4,3689.3,0.002]
[1754023907793,39.41089964,3689.4,3689.3,0.002]
[1754023908843,35.25289964,3689.4,3689.3,0.002]
[1754023909126,39.40989964,3689.4,3689.3,0.002]
[1754023909722,39.4098492,3689.4,3689.3,0.002]
[1754023910032,42.12031702,3689.4,3689.3,0.002]
[1754023910197,3.26061476,3689.2,3689.1,0.002]
[1754023910395,0.55,3688.9,3687.9,0.1]
[1754023910729,44.21490222,3688.4,3687.9,0.1]
[1754023911033,49.01454236,3688.4,3687.9,0.1]
[1754023911333,50.17432881,3688.4,3687.9,0.1]
[1754023911534,50.55807774,3688.4,3687.9,0.1]
[1754023911848,50.93340956,3688.4,3687.9,0.1]
[1754023911994,53.79240956,3688.4,3687.9,0.1]
[1754023912343,47.83845795,3688.4,3687.9,0.1]
[1754023912708,39.88475841,3688.4,3687.9,0.1]
[1754023912908,42.59596109,3688.4,3687.9,0.1]
[1754023913435,35.72675841,3688.4,3687.9,0.1]
[1754023913595,39.88475841,3688.4,3687.9,0.1]
[1754023913797,8.17497196,3688.4,3687.9,0.1]
[1754023913996,8.17497196,3688.4,3688.1,0.4984]
[1754023915045,8.17497196,3688.4,3688.3,0.4804]
[1754023915232,7.79964014,3688.4,3688.3,0.4804]
[1754023916330,7.79964014,3688.4,3688.3,0.8979]
[1754023916331,0.64164014,3688.4,3688.3,0.8979]
[1754023916546,4.79964014,3688.4,3688.3,0.8979]
[1754023917325,4.79964014,3688.4,3688.3,0.4804]
[1754023918130,7.79964014,3688.4,3688.3,0.4804]
[1754023918355,7.79964014,3688.4,3688.3,0.8979]
[1754023918930,7.79964014,3688.4,3688.3,0.4804]
[1754023919129,4.79964014,3688.4,3688.3,0.8979]
[1754023919547,4.79964014,3688.4,3688.3,0.4804]
[1754023920253,0.25322007,3688.4,3688.3,0.4804]
[1754023920550,0.1352,3688.6,3688.3,0.8979]
[1754023920720,4.158,3688.5,3688.3,0.8979]
[1754023920920,4.158,3688.5,3688.4,0.8959]
[1754023922453,0.1352,3688.6,3688.4,0.8959]
[1754023922652,0.1352,3689.0,3688.5,0.8959]
[1754023922954,4.2932,3689.5,3688.7,2.7109096]
[1754023923137,0.50556214,3689.4,3689.0,0.1352]
[1754023923329,0.50556214,3689.3,3689.1,0.4175]
[1754023923544,0.25278747,3689.2,3689.1,0.4784]
[1754023923732,4.2932,3689.5,3689.1,0.4784]
[1754023923936,0.50557774,3689.4,3689.1,0.4784]
[1754023924139,0.50557774,3689.3,3689.2,0.4175]
[1754023924354,0.50557774,3689.3,3689.0,0.1352]
[1754023924524,0.50557774,3689.2,3689.0,0.1352]
[1754023924873,4.158,3689.5,3688.6,0.37442581]
[1754023925156,4.158,3689.5,3689.1,0.4784]
[1754023925157,0.25285256,3689.4,3689.1,0.4784]
[1754023925355,4.158,3689.5,3689.2,0.4784]
[1754023925556,4.158,3689.5,3688.7,0.4175]
[1754023925557,4.158,3689.5,3689.3,0.4784]
[1754023925762,4.158,3689.5,3688.8,0.1352]
[1754023925964,0.1352,3689.3,3688.9,0.8959]
[1754023926254,0.1352,3689.3,3688.3,0.002]
[1754023926255,0.46,3689.2,3688.6,0.4784]
[1754023926470,0.1352,3689.0,3688.6,0.4784]
[1754023926632,4.2922,3689.0,3688.6,0.4784]
[1754023926837,4.157,3689.0,3688.7,0.4175]
[1754023927025,4.157,3689.0,3688.8,1.0311]
[1754023927221,0.1352,3689.3,3688.9,0.4784]
[1754023927222,4.2922,3689.3,3688.9,0.4784]
[1754023927428,0.1352,3689.0,3688.7,0.4784]
[1754023927735,0.1352,3689.0,3688.8,0.4784]
[1754023927938,0.1352,3689.0,3688.4,0.1352]
[1754023928140,4.157,3688.9,3688.3,0.002]
[1754023928452,0.1352,3688.6,3688.3,0.002]
[1754023928680,4.157,3688.5,3688.3,0.002]
[1754023929552,1.0913,3688.4,3688.3,0.002]
[1754023929974,0.5952,3688.4,3688.3,0.002]
[1754023930173,0.1352,3688.4,3688.3,0.002]
[1754023930883,0.5952,3688.4,3688.3,0.002]
[1754023931181,1.0913,3688.4,3688.3,0.002]
[1754023931517,1.56652,3688.4,3688.3,0.002]
[1754023931654,1.81931886,3688.4,3688.3,0.002]
[1754023931855,1.32321886,3688.4,3688.3,0.002]
[1754023932057,0.1352,3688.4,3688.3,0.4804]
[1754023932386,4.2922,3688.4,3688.3,0.4804]
[1754023935184,4.2922,3688.4,3688.3,0.002]
[1754023936549,4.7551,3688.4,3688.3,0.002]
[1754023937186,4.2922,3688.4,3688.3,0.002]
[1754023937375,4.2922,3688.4,3688.3,0.4808]
[1754023937687,0.1352,3688.4,3688.3,0.4808]
[1754023937991,4.2922,3688.4,3688.3,0.4808]
[1754023939690,4.2922,3688.4,3688.3,0.002]
[1754023940783,0.1352,3688.4,3688.3,0.002]
[1754023940988,0.1352,3688.4,3688.3,0.4808]
[1754023941189,4.2922,3688.4,3688.3,0.4808]
[1754023941586,0.1352,3688.4,3688.3,0.4808]
[1754023941787,4.2922,3688.4,3688.3,0.4808]
[1754023942769,0.1352,3688.4,3688.3,0.002]
[1754023942972,4.2922,3688.4,3688.3,0.8983]
[1754023943183,0.1352,3688.4,3688.3,0.8983]
[1754023943571,0.4852,3689.9,3688.3,0.8983]
[1754023943572,0.1352,3689.4,3688.5,2.71109551]
[1754023943765,0.50608973,3689.3,3688.6,0.92341055]
[1754023944101,0.1352,3689.4,3688.9,0.1352]
[1754023944305,3.1352,3689.4,3688.9,0.1352]
[1754023944603,0.001,3689.1,3689.0,0.92340761]
[1754023944806,0.001,3689.1,3689.0,0.02710761]
[1754023945114,0.001,3689.1,3689.0,0.40900153]
[1754023945312,0.001,3689.1,3688.9,0.1352]
[1754023945608,0.001,3689.1,3689.0,0.4788]
[1754023945981,0.9491,3689.1,3688.3,0.36767931]
[1754023946191,0.9491,3689.1,3688.3,0.4808]
[1754023947307,0.25310093,3689.0,3688.3,0.4808]
[1754023949001,0.001,3689.1,3688.3,0.4808]
[1754023949171,0.2531896,3689.0,3688.3,0.4808]
[1754023949608,0.2531896,3689.0,3688.4,0.4175]
[1754023949775,0.001,3689.1,3688.6,2.71105256]
[1754023949974,0.001,3689.1,3688.7,0.31556639]
[1754023950182,0.001,3689.1,3688.7,0.79436639]
[1754023950420,0.001,3689.1,3688.8,3.63430531]
[1754023950612,0.001,3689.1,3688.8,0.8963]
[1754023950812,0.001,3689.1,3688.9,0.8963]
[1754023951176,0.001,3689.1,3688.7,0.31556639]
[1754023951381,0.001,3689.1,3689.0,0.4788]
[1754023951815,0.001,3689.1,3689.0,0.8963]
[1754023953121,0.4639,3689.1,3688.7,0.31556639]
[1754023953323,0.9481,3689.0,3688.3,0.4808]
[1754023955915,0.9481,3689.0,3688.6,0.1352]
[1754023956220,0.9481,3688.9,3688.6,0.1352]
[1754023956527,0.9481,3688.8,3688.6,0.1352]
[1754023956821,0.4629,3689.0,3688.6,0.1352]
[1754023956984,0.4629,3688.9,3688.6,0.1352]
[1754023957507,0.1362,3689.1,3688.7,0.4788]
[1754023957821,0.5991,3689.1,3688.6,0.1352]
[1754023958028,0.9481,3689.0,3688.6,0.1352]
[1754023958324,0.1352,3688.7,3688.3,0.002]
[1754023958537,0.1352,3688.4,3688.3,0.002]
[1754023958737,0.64144854,3688.4,3688.3,0.002]
[1754023958893,1.58954854,3688.4,3688.3,0.002]
[1754023961231,1.10434854,3688.4,3688.3,0.002]
[1754023961432,0.64144854,3688.4,3688.3,0.002]
[1754023962137,0.38832427,3688.4,3688.3,0.002]
[1754023962339,0.64130434,3688.4,3688.3,0.002]
[1754023963152,0.38832427,3688.4,3688.3,0.002]
[1754023963356,1.10420017,3688.4,3688.3,0.002]
[1754023963854,1.58940017,3688.4,3688.3,0.002]
[1754023965385,2.47983567,3688.4,3688.3,0.002]
[1754023966455,1.58940017,3688.4,3688.3,0.002]
[1754023966855,0.1352,3688.4,3688.3,0.002]
[1754023967087,0.1352,3688.4,3688.3,0.4981]
[1754023967481,0.1352,3688.4,3688.3,0.002]
[1754023967865,0.2352,3690.2,3688.3,0.4981]
[1754023968068,0.5049395,3689.7,3688.9,2.7108352]
[1754023968302,4.158,3689.8,3689.0,14.54434892]
[1754023968511,0.1362,3690.3,3689.0,14.51724131]